Cogmind - Beta 14 @@@ ROGUE MODE // 2024.08.23 @ 20:17:12 Player: cabin Result: Self-destructed Performance ------------- Evolutions (1) 500 Regions Visited (2) 400 Robots Destroyed (9) 45 Value Destroyed (237) 237 Prototype IDs (2) 40 Alien Tech Used (0) 0 Bonus (0) 0 TOTAL SCORE: 1222 Bonus ------- None Cogmind --------- Core Integrity 248/400 Matter 300/300 Energy 2/100 System Corruption 0% Temperature Cool (0) Movement Walking (120) Location -9/Materials Parts ------- > --- POWER (1) -------- (None) > --- PROPULSION (2) --- Aluminum Leg Aluminum Leg > --- UTILITY (3) ------ Heat Sink Heat Sink Heat Sink > --- WEAPON (3) ------- Small Laser Particle Gun Light Assault Rifle > --- INVENTORY (5) ---- Seismic Detector EM Pulse Gun Peak State ------------ > --- POWER ------------ (None) > --- PROPULSION ------- Aluminum Leg Aluminum Leg > --- UTILITY ---------- Heat Sink Heat Sink Heat Sink > --- WEAPON ----------- Small Laser Particle Gun Light Assault Rifle > --- INVENTORY -------- Seismic Detector EM Pulse Gun [Rating: 9] Favorites ----------- Power Light Ion Engine Engine Light Ion Engine Propulsion Light Treads Treads Light Treads Leg Aluminum Leg Hover Unit Backup Propulsion I Flight Unit Flight Unit Utility Heat Sink Device Heat Sink Protection Backup Plating I Weapon Assault Rifle Energy Gun Small Laser Ballistic Gun Assault Rifle Build | -11 -10 -9 ------- Run | Yrd Mat Mat Slots Evolved 2 | . . 2 Power . | . . . Propulsion . | . . . Utility 1 | . . 1 Weapon 1 | . . 1 Parts Attached 21 | 5 4 12 Power 1 | 1 . . Engine 1 | 1 . . Core . | . . . Reactor . | . . . Propulsion 6 | 2 . 4 Treads 2 | 2 . . Leg 2 | . . 2 Wheel . | . . . Hover 1 | . . 1 Flight 1 | . . 1 Utility 5 | . 1 4 Device 4 | . 1 3 Storage . | . . . Processor . | . . . Hackware . | . . . Protection 1 | . . 1 Artifact . | . . . Weapon 9 | 2 3 4 Energy Gun 6 | 1 2 3 Energy Cannon . | . . . Ballistic Gun 3 | 1 1 1 Ballistic Cannon . | . . . Launcher . | . . . Special Weapon . | . . . Impact Weapon . | . . . Slashing Weapon . | . . . Piercing Weapon . | . . . Special Melee Weapon . | . . . Unidentified Prototypes . | . . . Parts Lost 5 | . . 5 Power 1 | . . 1 Propulsion 2 | . . 2 Utility 1 | . . 1 Weapon 1 | . . 1 Highest Loss Streak 4 | . . 4 To Critical Strikes . | . . . Average Slot Usage (%) 70 | . 69 71 Engine 8 | . 14 3 Treads 8 | . 19 . Leg 5 | . . 10 Flight 2 | . . 5 Device 13 | . 7 18 Protection 1 | . . 2 Energy Gun 15 | . 14 16 Ballistic Gun 14 | . 14 14 Peak Build Rating 9 | 5 6 9 Average Rating 5 | 4 4 7 On Entrance 3 | . 5 4 Naked Turns . | . . . Heaviest Build 9 | 7 8 9 Greatest Support 40 | 40 40 20 Greatest Overweight (x) 2 | . 2 2 Average Overweight (x) . | . . . Largest Inventory Capacity 5 | 5 5 5 Average Capacity 5 | 5 5 5 Most Carried 5 | . 4 5 Average Carried 1 | . 1 2 Final Capacity 5 | 5 5 5 Final Carried 3 | . 3 2 Class Distribution -------------------- 67% | Mutant 26% | Scavenger-Mutant 5% | Gunner Dominant Class ---------------- Mutant | -10/Materials Scavenger-Mutant | -9/Materials Resources | -11 -10 -9 ----------- Run | Yrd Mat Mat Matter Collected 448 | 237 78 133 Remotely . | . . . Salvage Created 300 | . 119 181 Parts 24 | . 12 12 Haulers Intercepted . | . . . Recyclers Shooed . | . . . Parts Field Recycled . | . . . Retrieved Matter . | . . . Parts Self-Destructed . | . . . Prevented . | . . . Kills | -11 -10 -9 ------- Run | Yrd Mat Mat Combat Hostiles Destroyed 8 | . 4 4 Guns 8 | . 4 4 Classes Destroyed 4 | . 3 1 Watcher 1 | . 1 . Swarmer 3 | . 3 . Grunt 4 | . 1 3 Sentry 1 | . . 1 Best Kill Streak 3 | . 2 3 Combat Bots Only 3 | . 2 3 Max Kills in Single Turn 1 | . 1 1 Gunslinging . | . . . Exploded . | . . . Melee . | . . . Uniques/NPCs Destroyed . | . . . Combat | -11 -10 -9 -------- Run | Yrd Mat Mat Hostile Shots Fired 94 | . 35 59 Missed 32 | . 12 20 Damage Taken 681 | . 182 499 Core 179 | . 27 152 Absorbed by Shields . | . . . Core Remaining (%) 94 | 100 89 . Volleys Fired 29 | . 12 17 Largest 3 | . 2 3 Hottest 105 | . 60 105 Shots Fired 53 | . 24 29 Gun 53 | . 24 29 Cannon . | . . . Launcher . | . . . Special . | . . . Kinetic 29 | . 12 17 Thermal 12 | . . 12 Explosive . | . . . Electromagnetic 12 | . 12 . Robot Hit Streak 8 | . 8 8 Robot Miss Streak 3 | . 3 3 Penetration Max . | . . . Secondary Targets . | . . . Shots Hit Robots 34 | . 15 19 Core Hits 16 | . 5 11 Critical Kills . | . . . Critical Parts Destroyed . | . . . Critical Strikes . | . . . Melee Attacks . | . . . Impact . | . . . Slashing . | . . . Piercing . | . . . Sneak Attacks . | . . . Combat Hostiles . | . . . Follow-up Attacks . | . . . Damage Inflicted 419 | . 181 238 Guns 409 | . 181 228 Cannons . | . . . Explosions . | . . . Melee . | . . . Ramming 10 | . . 10 Kinetic 221 | . 87 134 Thermal 94 | . . 94 Explosive . | . . . Electromagnetic 94 | . 94 . Impact . | . . . Slashing . | . . . Piercing . | . . . Highest Corruption . | . . . Average Corruption . | . . . Corruption Purged . | . . . Corruption Blocked . | . . . Overload Shots . | . . . Overflow Damage . | . . . Projectiles . | . . . Explosions . | . . . Melee . | . . . Knockbacks . | . . . Impact . | . . . Kinetic . | . . . Secondary . | . . . Self-Inflicted Damage 5 | . . 5 Shots . | . . . Rammed 2 | . . 2 Targets Rammed 2 | . . 2 Kicked . | . . . Crushed . | . . . Highest Temperature 322 | . 6 322 Average Temperature 113 | . 6 124 Received Heat Transfer 351 | . 12 339 Siege Activations . | . . . Robots Corrupted . | . . . Combat Hostiles . | . . . Parts Fried . | . . . Impact Corruptions . | . . . Robots Melted . | . . . Combat Hostiles . | . . . Parts Melted . | . . . Heat Transferred 224 | . . 224 Parts Sabotaged . | . . . Parts Stolen . | . . . Parts Stripped . | . . . Power Chain Reactions . | . . . Alert | -11 -10 -9 ------- Run | Yrd Mat Mat Peak Influence 117 | . 117 95 Initial 49 | . . 49 Average 64 | . 81 74 Maximum Alert Level . | . . . Low Security (%) 100 | 100 100 100 Level 1 . | . . . Level 2 . | . . . Level 3 . | . . . Level 4 . | . . . Level 5 . | . . . High Security . | . . . Max Security . | . . . Squads Dispatched . | . . . Investigation . | . . . Extermination . | . . . Reinforcement . | . . . Assault . | . . . Garrison . | . . . Intercept . | . . . Searches Triggered . | . . . Construction Impeded . | . . . Haulers Reinforced . | . . . Active Scanning Responses . | . . . Cargo Convoy Interrupts . | . . . Stealth | -11 -10 -9 --------- Run | Yrd Mat Mat Distress Signals 1 | . . 1 Communications Jammed . | . . . Distress Signals . | . . . Times Spotted 11 | . 5 6 Peak Tracking Total 6 | . 3 6 Tactical Retreats . | . . . Traps | -11 -10 -9 ------- Run | Yrd Mat Mat Traps Triggered 1 | . 1 . Indirectly . | . . . Trap Hack Attempts . | . . . Triggered . | . . . Disarmed . | . . . Reprogrammed . | . . . Reused . | . . . Traps Extracted . | . . . Installed . | . . . Triggered . | . . . Machines | -11 -10 -9 ---------- Run | Yrd Mat Mat Machines Disabled 1 | . 1 . Max in Single Turn 1 | . 1 . Machines Repaired . | . . . Machines Dismantled . | . . . Machines Sabotaged . | . . . Overloaded Fab Kills . | . . . Hacking | -11 -10 -9 --------- Run | Yrd Mat Mat Machines Accessed 3 | . 2 1 Terminals 2 | . 2 . Fabricators . | . . . Repair Stations 1 | . . 1 Recycling Units . | . . . Scanalyzers . | . . . Garrison Access . | . . . Total Hacks 6 | . 3 3 Successful 4 | . 3 1 Failed 2 | . . 2 Catastrophic . | . . . Database Lockouts . | . . . Manual . | . . . Terminals 3 | . 3 . Fabricators . | . . . Repair Stations 3 | . . 3 Recycling Units . | . . . Scanalyzers . | . . . Garrison Access . | . . . Terminal Hacks 3 | . 3 . Record 2 | . 2 . Prototype ID Bank 1 | . 1 . Fabricator Hacks . | . . . Repair Station Hacks 1 | . . 1 Refit 1 | . . 1 Recycling Unit Hacks . | . . . Scanalyzer . | . . . Garrison Access Hacks . | . . . Unauthorized Hacks . | . . . Terminals . | . . . Fabricators . | . . . Repair Stations . | . . . Recycling Units . | . . . Scanalyzers . | . . . Garrison Access . | . . . Data Cores Recovered . | . . . Used . | . . . Hacking Detections 1 | . . 1 Full Trace Events 1 | . . 1 Feedback Events . | . . . Feedback Blocked . | . . . Robot Schematics Acquired . | . . . Robots Built . | . . . Authchips . | . . . Time . | . . . Total Robot Build Rating . | . . . Part Schematics Acquired . | . . . Parts Built . | . . . Authchips . | . . . Time . | . . . Total Part Build Rating . | . . . Parts Repaired . | . . . Time . | . . . Parts Recycled . | . . . Recycled Matter . | . . . Retrieved Matter . | . . . Retrieved Components . | . . . Parts Scanalyzed . | . . . Part Schematics Acquired . | . . . Parts Damaged . | . . . Bothacking | -11 -10 -9 ------------ Run | Yrd Mat Mat Used RIF Installer . | . . . Robots Hacked . | . . . Non-combat . | . . . Combat . | . . . Robot Hacks Applied . | . . . Relay Couplers Released . | . . . Fabnet Peak Effective % . | . . . Robots Rewired . | . . . Allies Hacked . | . . . Hacks Repelled . | . . . Allies | -11 -10 -9 -------- Run | Yrd Mat Mat Total Allies . | . . . Largest Group . | . . . Highest-Rated Group . | . . . Highest-Rated Ally . | . . . Total Orders . | . . . Ally Attacks . | . . . Total Damage . | . . . Kills . | . . . Allies Corrupted . | . . . Allies Melted . | . . . Intel | -11 -10 -9 ------- Run | Yrd Mat Mat Robot Analysis Total . | . . . Derelict Logs Recovered . | . . . Drone Launches . | . . . Drone Recoveries . | . . . Exploration | -11 -10 -9 ------------- Run | Yrd Mat Mat Turns Passed 686 | 116 243 327 Spaces Moved 359 | 64 127 168 Core 77 | 2 52 23 Treads 137 | 62 75 . Legs 78 | . . 78 Wheels . | . . . Hover 8 | . . 8 Flight 59 | . . 59 Fastest Speed 50 | 50 100 100 Average Speed 139 | 156 155 121 Slowest Speed 200 | 160 160 200 Overloaded Moves . | . . . Propulsion Burnouts . | . . . Robots Hopped . | . . . Cave-ins Triggered . | . . . Exploration Rate (%) 13 | 4 27 9 Regions Visited 2 Branch Regions . Pre-discovered Areas . | . . . Known Exits Taken . | . . . Unknown Exits Taken 2 | 1 1 . Scrap Searched . | . . . Spaces Dug . | . . . Terrain Destroyed . | . . . Melee . | . . . Projectile . | . . . AOE . | . . . Terrain Rammed . | . . . Walls Destroyed . | . . . Machines Disabled . | . . . Actions | -11 -10 -9 --------- Run | Yrd Mat Mat Total 491 | 77 149 265 Wait 70 | 9 2 59 Move 357 | 63 126 168 Hop . | . . . Pick Up 4 | . 3 1 Fast Attach 13 | 5 2 6 Attach 8 | . 2 6 Detach 6 | . 2 4 Swap . | . . . Drop 2 | . . 2 Fire 29 | . 12 17 Melee . | . . . Ram 2 | . . 2 Kick . | . . . Crush . | . . . Escape Stasis . | . . . Rewire . | . . . Trap . | . . . Miscellaneous . | . . . Route ------- -11/Scrapyard -10/Materials -9/Materials History --------- Turn | Location | Event 23 | -11/Scrapyard | Discovered new exit (range 16) 117 | -11/Scrapyard | Entered Materials 305 | -10/Materials | Build established: Mutant 339 | -10/Materials | Discovered new exit (range 15) 360 | -10/Materials | Entered another Materials area 360 | -9/Materials | Evolved 2 slots: Utility x1, Weapon x1 511 | -9/Materials | Lost 4 parts (1p1n1u1w) 687 | -9/Materials | Self-destructed Last Messages --------------- 00481_ G-47 Trooper destroyed. 00490_ Slammed into W-16 Scout. 00490_ Particle Gun broken. 00490_ Destabilizing: Short circuit. 00491_ Slammed into W-16 Scout. 00491_ Destabilizing: System interference. 00491_ Lgt. Assault Rifle temporarily disabled. 00499_ Acquired Sml. Laser. 00501_ G-34 Mercenary destroyed. 00504_ Acquired Heat Sink. 00512_ Flight Unit destroyed. 00519_ G-34 Mercenary destroyed. 00523_ Y-45 Defender destroyed. 00529_ Acquired Aluminum Leg. 00615_ Connecting with Repair Station... 00642_ Acquired 96 matter. 00647_ U-05 Engineer lays Concrete. 00659_ K-01 Serf collects debris. 00671_ Acquired 37 matter. 00678_ R-06 Scavenger collects Lgt. Treads. Map ----- +----------------------------------------------------+ | ?????????????????????????????????????????????????? | | ?????????????????????????????????????????????????? | | ?????????????????????????????????????????????????? | | ?????????????????????????????????????#####???????? | | ?????????????????????????????????????# ######### | | ?????????????????????????????????????# # | | ?????????????????????????????????????# # """" | | ?????????????????????????????????????# # """" | | ?????????????????????????????????????# # """" | | ?????????????????????????????????????# + | | ?????????????????????????????????????# # " " | | ?????????????????????????????????????# # "R" | | | ??????????????????????????????????####"# # """ | | ??????????????????????????????????# # ########+ | | ??????????????????????????????????# ! !# #??????# | | ??????????????????????????????????#= # ######## | | ??????????????????????????????????#*! + | | ??????????????????????????????????# *%*########### | | ??????????????????????????????????#+###########??? | | ?????????????????????########?????# #?# ! #??? | | ?????????????????????# #?????#[### """ #??? | | ?????????????????????# #?????#=[ + """ #??? | | ?????????????????????# """ #?????# # """ #??? | | ?????????????????????# """ #?????# + #??? | | ?????????????????????# """ #?????# #########??? | | ?????????????????????# @ #???### ###????????? | | ?????????????????????####/###???# #????????? | | ??????????????????????# ##### #????????? | | ??????????????????????# # ??? | | ??????????????? %% T ??? | | ????????????? ### # # | | ??????????????# ????# ##### ### #? | | ??????????????#???????#######???# #???? ##? | | ????????????????????????????????#########??????#?? | | ?????????????????????????????????????????????????? | | ?????????????????????????????????????????????????? | | ?????????????????????????????????????????????????? | | ?????????????????????????????????????????????????? | | ?????????????????????????????????????????????????? | | ?????????????????????????????????????????????????? | | ?????????????????????????????????????????????????? | | ?????????????????????????????????????????????????? | | ?????????????????????????????????????????????????? | | ?????????????????????????????????????????????????? | | ?????????????????????????????????????????????????? | | ?????????????????????????????????????????????????? | | ?????????????????????????????????????????????????? | | ?????????????????????????????????????????????????? | | ?????????????????????????????????????????????????? | | ?????????????????????????????????????????????????? | +----------------------------------------------------+ Best States ------------- Heat Dissipation 58 Energy Generation 10 Energy Capacity 125 Matter Stores 300 Matter Capacity 300 Sight Range 16 Terrain Scan Density 10 Armor Coverage 160 Evasion (%) 55 Recoil Reduction 2 Item Schematics ----------------- None Robot Schematics ------------------ None Fabricated ------------ Nothing Alien Tech Used ----------------- None Achievements -------------- None Challenges ------------ None Game ------ Seed PortableBarrageMonowheel Manual? 0 Play Time 00:12:30 Cumulative 7.2 hours Start 2024.08.23 @ 19:43:33 End 2024.08.23 @ 20:17:12 Sessions 1 Manual Loads 0 Difficulty Rogue Special Mode None Game No. 20 Rogue 19 Adventurer 1 Explorer 0 Win Type - Total 0 Types 0/0/0/0/0/0/0/0/0 Lore% 2 Gallery% 11 Achievement% 11 Wizard Run 0 Options --------- Layout 2 ASCII 0 Keyboard 1 Movement Numpad Keybinds 0 Fullscreen 1 Font 24/Smallcaps Map View 50x44 Zoom Use 0% Tactical HUD 1 Map Filters NONE Filters NONE Steam 1 RUN: 0cb3a0e6-97e7-44b1-955a-1c953f62b859